fUSD/lending_fUSD_20240412
["ID","MTS","AMOUNT","RATE_DAILY","PERIOD"]
[322280317,1712932246153,-500.0,0.000395,5]
[322280319,1712932246163,-500.0,0.000395,5]
[322280321,1712932246172,-500.0,0.000395,5]
[322280323,1712932246181,-153.06291746,0.00039566,5]
[322280326,1712932246190,-155.0,0.00039726,2]
[322280329,1712932246199,-150.0,0.00039798,2]
[322280332,1712932246209,-9431.6267533,0.00039898,13]
[322280335,1712932246218,-181.74865269,0.000399,48]
[322280338,1712932246227,-193.0576741,0.0004,2]
[322280341,1712932246236,-3669.05049637,0.0004,10]
[322280343,1712932246245,-153.06291746,0.00040415,8]
[322280346,1712932246254,-152.49,0.000405,4]
[322280349,1712932246264,-152.49,0.000405,4]
[322280352,1712932246273,-152.49,0.000405,4]
[322280355,1712932246283,-152.49,0.000405,4]
[322280358,1712932246292,-152.49,0.000405,4]
[322280362,1712932246302,-152.49,0.000405,4]
[322280366,1712932246312,-152.49,0.000405,4]
[322280369,1712932246321,-152.49,0.000405,4]
[322280371,1712932246330,-152.49,0.000405,4]
[322280373,1712932246340,-152.49,0.000405,4]
[322280375,1712932246351,-152.49,0.000405,4]
[322280377,1712932246361,-152.49,0.000405,4]
[322280379,1712932246370,-203.53,0.00040539,2]
[322280381,1712932246380,-150.0,0.00040663,2]
[322280383,1712932246390,-249.96,0.00040767,15]
[322280385,1712932246401,-161.89,0.00041096,2]
[322280386,1712932246410,-157.0,0.00041096,2]
[322280387,1712932246419,-324.89,0.000411,7]
[322280388,1712932246428,-343.71,0.000411,7]
[322280389,1712932246439,-5000.0,0.000411,2]
[322280390,1712932246447,-153.06291746,0.00041263,11]
[322280391,1712932246458,-150.0,0.00041528,2]
[322280392,1712932246471,-617.886,0.00041597,2]
[322280393,1712932246483,-280.0,0.00041597,2]
[322280394,1712932246495,-396.0,0.00041597,2]
[322280395,1712932246505,-1140.0,0.00041597,2]
[322280396,1712932246516,-1462.0,0.00041597,2]
[322280397,1712932246526,-2981.0,0.00041597,2]
[322280398,1712932246536,-150.0,0.00041597,2]
[322280399,1712932246546,-2438.0,0.00041597,2]
[322280400,1712932246555,-150.0,0.00041597,2]
[322280401,1712932246565,-1636.0,0.00041597,2]
[322280402,1712932246575,-214.0,0.00041597,2]
[322280403,1712932246584,-354.0,0.00041597,2]
[322280404,1712932246594,-442.0,0.00041597,2]
[322280405,1712932246608,-1175.0,0.00041597,2]
[322280406,1712932246619,-1215.275,0.00041597,2]
[322280407,1712932246629,-278.0,0.00041597,2]
[322280408,1712932246638,-153.06291746,0.00042112,14]
[322280409,1712932246648,-9431.6267533,0.00042273,16]
[322280410,1712932246657,-150.0,0.00042394,2]
[322280411,1712932246666,-203.53,0.00042803,2]
[322280412,1712932246676,-153.06291746,0.0004296,17]
[322280413,1712932246686,-1001.29287374,0.00043,2]
[322280414,1712932246696,-150.0,0.00043162,7]
[322280415,1712932246706,-150.0,0.00043162,7]
[322280416,1712932246716,-150.0,0.00043162,7]
[322280417,1712932246725,-150.0,0.00043162,7]
[322280418,1712932246735,-150.0,0.00043162,7]
[322280419,1712932246745,-150.0,0.00043162,7]
[322280420,1712932246755,-150.0,0.00043162,7]
[322280421,1712932246765,-150.0,0.00043162,7]
[322280422,1712932246776,-150.0,0.00043162,7]
[322280423,1712932246786,-150.0,0.00043162,7]
[322280424,1712932246797,-150.0,0.00043162,7]
[322280425,1712932246806,-150.0,0.00043162,7]
[322280426,1712932246816,-150.0,0.00043162,7]
[322280427,1712932246869,-150.0,0.00043162,7]
[322280428,1712932246879,-150.0,0.00043164,30]
[322280429,1712932246889,-150.0,0.00043164,30]
[322280430,1712932246899,-150.0,0.00043164,30]
[322280431,1712932246909,-150.0,0.00043259,2]
[322280432,1712932246919,-97870.84518132,0.0004332,15]
[322280433,1712932246929,-160.579906,0.0004332,14]
[322280434,1712932246939,-239.51068,0.0004332,14]
[322280435,1712932246949,-151.0,0.0004332,14]
[322280436,1712932246958,-175.25082,0.0004332,14]
[322280437,1712932246968,-157.613951,0.0004332,14]
[322280438,1712932246977,-151.0,0.0004332,14]
[322280439,1712932246987,-151.0,0.0004332,14]
[322280440,1712932246998,-151.0,0.0004332,14]
[322280441,1712932247006,-151.0,0.0004332,14]
[322280442,1712932247016,-151.0,0.0004332,14]
[322280443,1712932247026,-151.0,0.0004332,14]
[322280444,1712932247036,-158.570223,0.0004332,14]
[322280445,1712932247045,-151.0,0.0004332,14]
[322280446,1712932247055,-151.0,0.0004332,14]
[322280447,1712932247066,-151.0,0.0004332,14]
[322280448,1712932247075,-681.574382,0.0004332,14]
[322280449,1712932247084,-681.574382,0.0004332,14]
[322280450,1712932247094,-154.983474,0.0004332,14]
[322280451,1712932247104,-151.0,0.0004332,14]
[322280452,1712932247113,-151.0,0.0004332,14]
[322280453,1712932247123,-151.0,0.0004332,14]
[322280454,1712932247132,-151.0,0.0004332,14]
[322280455,1712932247144,-151.0,0.0004332,14]
[322280456,1712932247153,-151.0,0.0004332,14]
[322280457,1712932247162,-151.0,0.0004332,14]
[322280458,1712932247174,-151.0,0.0004332,14]
[322280459,1712932247183,-151.0,0.0004332,14]
[322280460,1712932247192,-151.0,0.0004332,14]
[322280461,1712932247202,-152.651977,0.0004332,14]
[322280462,1712932247211,-151.0,0.0004332,14]
[322280463,1712932247220,-151.0,0.0004332,14]
[322280464,1712932247229,-151.0,0.0004332,14]
[322280465,1712932247239,-152.651977,0.0004332,14]
[322280466,1712932247248,-151.0,0.0004332,14]
[322280467,1712932247257,-202.256037,0.0004332,14]
[322280468,1712932247267,-202.256037,0.0004332,14]
[322280469,1712932247276,-151.0,0.0004332,14]
[322280470,1712932247286,-151.0,0.0004332,14]
[322280471,1712932247295,-151.0,0.0004332,14]
[322280472,1712932247304,-151.0,0.0004332,14]
[322280473,1712932247316,-151.0,0.0004332,14]
[322280474,1712932247331,-151.0,0.0004332,14]
[322280475,1712932247341,-151.866915,0.0004332,14]
[322280476,1712932247351,-151.0,0.0004332,14]
[322280477,1712932247360,-151.0,0.0004332,14]
[322280478,1712932247369,-207.064247,0.0004332,14]
[322280479,1712932247382,-151.0,0.0004332,14]
[322280480,1712932247393,-151.0,0.0004332,14]
[322280481,1712932247402,-151.0,0.0004332,14]
[322280482,1712932247411,-151.0,0.0004332,14]
[322280483,1712932247422,-151.0,0.0004332,14]
[322280484,1712932247431,-151.0,0.0004332,14]
[322280485,1712932247441,-151.0,0.0004332,14]
[322280486,1712932247450,-151.0,0.0004332,14]
[322280487,1712932247460,-151.0,0.0004332,14]
[322280488,1712932247470,-151.0,0.0004332,14]
[322280489,1712932247479,-151.0,0.0004332,14]
[322280490,1712932247488,-151.0,0.0004332,14]
[322280491,1712932247503,-151.0,0.0004332,14]
[322280492,1712932247513,-151.0,0.0004332,14]
[322280493,1712932247522,-151.0,0.0004332,14]
[322280494,1712932247531,-151.0,0.0004332,14]
[322280495,1712932247540,-151.0,0.0004332,14]
[322280496,1712932247550,-151.0,0.0004332,14]
[322280497,1712932247560,-151.0,0.0004332,14]
[322280498,1712932247569,-151.0,0.0004332,14]
[322280499,1712932247578,-151.0,0.0004332,7]
[322280500,1712932247588,-151.0,0.0004332,14]
[322280501,1712932247597,-153.55449,0.0004332,14]
[322280502,1712932247607,-151.0,0.0004332,14]
[322280503,1712932247616,-153.55449,0.0004332,14]
[322280504,1712932247626,-151.0,0.0004332,14]
[322280505,1712932247635,-151.0,0.0004332,14]
[322280506,1712932247644,-151.0,0.0004332,14]
[322280507,1712932247653,-151.0,0.0004332,14]
[322280508,1712932247662,-200.619876,0.0004332,14]
[322280509,1712932247672,-151.0,0.0004332,14]
[322280510,1712932247682,-150.0,0.00043416,30]
[322280511,1712932247692,-200.0,0.00043487,20]
[322280512,1712932247701,-249.96,0.00043507,15]
[322280513,1712932247710,-150.0,0.00043669,30]
[322280514,1712932247719,-150.0,0.00043764,30]
[322280515,1712932247729,-2500.0,0.000438,2]
[322280516,1712932247738,-153.06291746,0.00043809,21]
[322280517,1712932247747,-6025.75,0.00043836,2]
[322280518,1712932247755,-5047.03,0.00043836,2]
[322280519,1712932247764,-150.0,0.00043921,30]
[322280520,1712932247774,-1000.0,0.0004397,3]
[322280521,1712932247783,-814.51754721,0.0004397,3]
[322280522,1712932247792,-152.49,0.000441,4]
[322280523,1712932247802,-152.49,0.000441,4]
[322280524,1712932247812,-152.49,0.000441,4]
[322280525,1712932247821,-152.49,0.000441,4]
[322280526,1712932247831,-152.49,0.000441,4]
[322280527,1712932247841,-152.49,0.000441,4]
[322280528,1712932247850,-152.49,0.000441,4]
[322280529,1712932247859,-152.49,0.000441,4]
[322280530,1712932247869,-152.49,0.000441,4]
[322280531,1712932247878,-152.49,0.000441,4]
[322280532,1712932247887,-152.49,0.000441,4]
[322280533,1712932247897,-152.49,0.000441,4]
[322280534,1712932247906,-150.0,0.00044123,30]
[322280535,1712932247915,-150.0,0.00044124,2]
[322280536,1712932247924,-150.0,0.00044174,30]
[322280537,1712932247933,-150.0,0.00044363,30]
[322280538,1712932247942,-150.0,0.00044426,30]
[322280539,1712932247952,-1000.0,0.000445,30]
[322280540,1712932247960,-1139.0,0.00044597,2]
[322280541,1712932247970,-1155.518,0.00044597,2]
[322280542,1712932247979,-150.0,0.00044597,2]
[322280543,1712932247988,-1636.0,0.00044597,2]
[322280544,1712932247997,-204.817,0.00044597,2]
[322280545,1712932248007,-442.0,0.00044597,2]
[322280546,1712932248016,-9431.6267533,0.00044648,19]
[322280547,1712932248025,-153.06291746,0.00044657,24]
[322280548,1712932248034,-150.0,0.00044679,30]
[322280549,1712932248043,-396.05,0.00044701,2]
[322280550,1712932248052,-175.75,0.00044701,2]
[322280551,1712932248061,-150.0,0.000449,2]
[322280552,1712932248070,-150.0,0.00044927,2]
[322280553,1712932248079,-150.0,0.00044931,30]
[322280554,1712932248088,-150.0,0.00044934,2]
[322280555,1712932248098,-150.0,0.00044934,2]
[322280556,1712932248107,-150.0,0.0004494,2]
[322280557,1712932248116,-150.0,0.00044963,30]
[322280558,1712932248126,-150.0,0.00044989,2]
[322280559,1712932248135,-150.0,0.0004499,2]
[322280560,1712932248144,-6026.86484103,0.00045,60]
[322280561,1712932248153,-210.70547682,0.00045,7]
[322280562,1712932248163,-150.0,0.00045016,2]
[322280563,1712932248172,-150.0,0.00045062,2]
[322280564,1712932248181,-203.53,0.00045067,2]
[322280565,1712932248191,-150.0,0.00045082,30]
[322280566,1712932248200,-150.0,0.00045113,2]
[322280567,1712932248209,-150.0,0.0004514,2]
[322280568,1712932248218,-150.0,0.00045147,2]
[322280569,1712932248227,-150.0,0.00045155,2]
[322280570,1712932248236,-150.0,0.00045171,2]
[322280571,1712932248245,-150.0,0.00045183,30]
[322280572,1712932248255,-150.0,0.00045187,2]
[322280573,1712932248264,-150.0,0.0004522,7]
[322280574,1712932248273,-150.0,0.00045221,2]
[322280575,1712932248282,-150.0,0.00045224,2]
[322280576,1712932248291,-150.0,0.00045224,2]
[322280577,1712932248300,-150.0,0.00045258,2]
[322280578,1712932248310,-150.0,0.00045267,2]
[322280579,1712932248319,-150.0,0.00045272,2]
[322280580,1712932248328,-150.0,0.00045308,2]
[322280581,1712932248337,-150.0,0.00045326,2]
[322280582,1712932248347,-150.0,0.00045359,2]
[322280583,1712932248358,-150.0,0.00045394,2]
[322280584,1712932248366,-150.0,0.0004542,2]
[322280585,1712932248376,-150.0,0.00045436,30]
[322280586,1712932248385,-150.0,0.0004544,2]
[322280587,1712932248398,-150.0,0.00045456,2]
[322280588,1712932248407,-150.0,0.000455,8]
[322280589,1712932248416,-153.06291746,0.00045506,27]
[322280590,1712932248427,-150.0,0.0004551,2]
[322280591,1712932248436,-150.0,0.00045548,2]
[322280592,1712932248445,-150.0,0.00045549,2]
[322280593,1712932248455,-150.0,0.00045562,30]
[322280594,1712932248464,-1030.21717795,0.0004557,10]
[322280595,1712932248473,-1023.8515053,0.0004557,10]
[322280596,1712932248483,-150.0,0.00045571,2]
[322280597,1712932248492,-150.0,0.00045574,2]
[322280598,1712932248501,-150.0,0.00045602,2]
[322280599,1712932248510,-150.0,0.00045608,2]
[322280600,1712932248519,-150.0,0.00045678,2]
[322280601,1712932248528,-150.0,0.00045688,30]
[322280602,1712932248537,-150.0,0.00045704,2]
[322280603,1712932248549,-150.0,0.00045721,2]
[322280604,1712932248559,-150.0,0.00045742,2]
[322280605,1712932248568,-150.0,0.00045761,2]
[322280606,1712932248577,-150.0,0.00045775,2]
[322280607,1712932248586,-150.0,0.00045778,2]
[322280608,1712932248596,-150.0,0.00045804,2]
[322280609,1712932248607,-150.0,0.00045807,2]
[322280610,1712932248616,-150.0,0.00045808,2]
[322280611,1712932248626,-150.0,0.00045827,2]
[322280612,1712932248635,-150.0,0.00045832,2]
[322280613,1712932248644,-150.0,0.00045854,2]
[322280614,1712932248653,-150.0,0.00045862,2]
[322280615,1712932248663,-150.0,0.00045863,2]
[322280616,1712932248672,-150.0,0.00045866,2]
[322280617,1712932248685,-150.0,0.00045871,2]
[322280618,1712932248694,-150.0,0.00045872,2]
[322280619,1712932248704,-150.0,0.00045881,2]
[322280620,1712932248714,-11621.32774865,0.00045888,60]
[322280621,1712932248723,-150.0,0.00045896,2]
[322280622,1712932248733,-5368.60133312,0.000459,30]
[322280623,1712932248742,-150.0,0.0004593,2]
[322280624,1712932248751,-150.0,0.00045935,2]
[322280625,1712932248760,-150.0,0.00045941,30]
[322280626,1712932248769,-150.0,0.00045964,2]
[322280627,1712932248778,-150.0,0.00045968,2]
[322280628,1712932248787,-150.0,0.00045971,2]
[322280629,1712932248797,-150.0,0.00045991,2]
[322280630,1712932248809,-150.0,0.00045993,2]
[322280631,1712932248818,-150.0,0.00045994,2]
[322280632,1712932248828,-150.0,0.00045996,2]
[322280633,1712932248837,-254.01326401,0.00046,15]
[322280634,1712932248846,-150.0,0.00046,8]
[322280635,1712932248858,-150.0,0.00046007,2]
[322280636,1712932248867,-150.0,0.00046008,2]
[322280637,1712932248878,-150.0,0.00046023,2]
[322280638,1712932248887,-150.0,0.00046024,2]
[322280639,1712932248896,-150.0,0.00046033,2]
[322280640,1712932248906,-6926.40813717,0.00046033,2]
[322280641,1712932248916,-150.0,0.00046035,2]
[322280642,1712932248925,-150.0,0.00046036,2]
[322280643,1712932248935,-151.0,0.0004604,14]
[322280644,1712932248944,-151.64322,0.0004604,14]
[322280645,1712932248953,-150.0,0.00046042,30]
[322280646,1712932248964,-150.0,0.00046042,2]
[322280647,1712932248974,-150.0,0.00046046,2]
[322280648,1712932248983,-150.0,0.0004605,2]
[322280649,1712932248993,-150.0,0.00046051,2]
[322280650,1712932249002,-150.0,0.00046053,2]
[322280651,1712932249012,-150.0,0.00046077,2]
[322280652,1712932249022,-150.0,0.00046105,2]
[322280653,1712932249031,-150.0,0.00046112,2]
[322280654,1712932249041,-417.390342,0.00046126,30]
[322280655,1712932249050,-150.0,0.00046131,2]
[322280656,1712932249062,-151.0,0.00046144,14]
[322280657,1712932249072,-150.0,0.00046156,2]
[322280658,1712932249082,-150.0,0.00046162,30]
[322280659,1712932249091,-150.0,0.00046163,2]
[322280660,1712932249100,-150.0,0.00046181,2]
[322280661,1712932249110,-150.0,0.00046193,30]
[322280662,1712932249119,-155.893476,0.00046204,14]
[322280663,1712932249129,-150.0,0.00046204,2]
[322280664,1712932249139,-200.0,0.00046204,25]
[322280665,1712932249149,-1000.0,0.00046204,50]
[322280666,1712932249158,-500.0,0.00046204,30]
[322280667,1712932249167,-500.0,0.00046204,30]
[322280668,1712932249177,-150.0,0.00046214,2]
[322280669,1712932249186,-150.0,0.00046222,2]
[322280670,1712932249196,-150.0,0.00046237,2]
[322280671,1712932249206,-150.0,0.00046245,2]
[322280672,1712932249216,-249.96,0.00046247,15]
[322280673,1712932249226,-150.0,0.00046283,2]
[322280674,1712932249235,-1000.0,0.00046284,50]
[322280675,1712932249245,-500.0,0.00046284,30]
[322280676,1712932249255,-150.0,0.00046307,2]
[322280677,1712932249264,-150.0,0.00046347,2]
[322280678,1712932249274,-153.06291746,0.00046354,30]
[322280679,1712932249283,-150.0,0.00046398,2]
[322280680,1712932249294,-150.0,0.00046398,2]
[322280681,1712932249304,-150.0,0.00046401,2]
[322280682,1712932249314,-620.0,0.00046411,30]
[322280683,1712932249324,-296.0,0.00046411,30]
[322280684,1712932249334,-426.0,0.00046411,30]
[322280685,1712932249345,-150.0,0.00046429,2]
[322280686,1712932249357,-150.0,0.00046432,2]
[322280687,1712932249367,-150.0,0.00046435,2]
[322280688,1712932249379,-150.0,0.00046445,30]
[322280689,1712932249390,-441.70411113,0.00046446,20]
[322280690,1712932249400,-150.0,0.00046462,2]
[322280691,1712932249410,-1000.0,0.0004647,3]
[322280692,1712932249420,-500.0,0.0004647,3]
[322280693,1712932249430,-12507.42490176,0.00046498,4]
[322280694,1712932249440,-150.0,0.00046498,2]
[322280695,1712932249450,-150.0,0.00046499,7]
[322280696,1712932249460,-3810.4543522,0.000465,60]
[322280697,1712932249471,-180996.2740599,0.000465,30]
[322280698,1712932249736,-714133.35831279,0.000465,30]
[322280699,1712932249746,-219.25888395,0.000465,2]
[322280700,1712932249756,-4194.41374299,0.000465,4]
[322280701,1712932249765,-16762.99751967,0.000465,4]
[322280702,1712932249775,-544.05162533,0.000465,120]
[322280703,1712932249784,-213.12075306,0.000465,7]
[322280704,1712932249794,-13003.4539152,0.000465,5]
[322280705,1712932249804,-324.89,0.000465,7]
[322280706,1712932249813,-343.71,0.000465,7]
[322280707,1712932249823,-151.0,0.000465,14]
[322280708,1712932249833,-151.0,0.000465,14]
[322280709,1712932249842,-151.0,0.000465,14]
[322280710,1712932249854,-151.0,0.000465,14]
[322280711,1712932249863,-151.0,0.000465,14]
[322280712,1712932249873,-151.0,0.000465,14]
[322280713,1712932249882,-151.0,0.000465,14]
[322280714,1712932249892,-151.0,0.000465,14]
[322280715,1712932249902,-151.0,0.000465,14]
[322280716,1712932249911,-151.0,0.000465,14]
[322280717,1712932249921,-681.574382,0.000465,14]
[322280718,1712932249931,-681.574382,0.000465,14]
[322280719,1712932249941,-151.0,0.000465,14]
[322280720,1712932249951,-151.0,0.000465,14]
[322280721,1712932249960,-151.0,0.000465,14]
[322280722,1712932249970,-151.0,0.000465,14]
[322280723,1712932249979,-151.0,0.000465,14]
[322280724,1712932249989,-151.0,0.000465,14]
[322280725,1712932249999,-151.0,0.000465,14]
[322280726,1712932250009,-151.0,0.000465,14]
[322280727,1712932250019,-151.0,0.000465,14]
[322280728,1712932250029,-152.651977,0.000465,14]
[322280729,1712932250041,-151.0,0.000465,14]
[322280730,1712932250050,-151.0,0.000465,14]
[322280731,1712932250060,-151.0,0.000465,14]
[322280732,1712932250070,-152.651977,0.000465,14]
[322280733,1712932250080,-156.791906,0.000465,14]
[322280734,1712932250091,-202.256037,0.000465,14]
[322280735,1712932250101,-202.256037,0.000465,14]
[322280736,1712932250113,-151.0,0.000465,14]
[322280737,1712932250123,-151.0,0.000465,14]
[322280738,1712932250138,-151.0,0.000465,14]
[322280739,1712932250150,-153.169492,0.000465,14]
[322280740,1712932250162,-156.497179,0.000465,14]
[322280741,1712932250173,-151.0,0.000465,14]
[322280742,1712932250184,-151.0,0.000465,14]
[322280743,1712932250194,-151.0,0.000465,14]
[322280744,1712932250204,-151.0,0.000465,14]
[322280745,1712932250215,-151.0,0.000465,14]
[322280746,1712932250226,-151.0,0.000465,14]
[322280747,1712932250236,-150.0,0.000465,8]
[322280748,1712932250246,-151.0,0.000465,14]
[322280749,1712932250256,-156.169069,0.000465,14]
[322280750,1712932250267,-151.0,0.000465,14]
[322280751,1712932250277,-151.971687,0.000465,14]
[322280752,1712932250287,-151.0,0.000465,7]
[322280753,1712932250297,-151.0,0.000465,14]
[322280754,1712932250307,-151.0,0.000465,14]
[322280755,1712932250318,-151.0,0.000465,14]
[322280756,1712932250328,-151.0,0.000465,14]
[322280757,1712932250338,-633.919989,0.000465,14]
[322280758,1712932250348,-633.919989,0.000465,14]
[322280759,1712932250359,-151.0,0.000465,14]
[322280760,1712932250368,-281.653262,0.000465,14]
[322280761,1712932250380,-151.0,0.000465,7]
[322280762,1712932250391,-151.0,0.000465,14]
[322280763,1712932250402,-151.0,0.000465,14]
[322280764,1712932250413,-151.0,0.000465,14]
[322280765,1712932250426,-151.0,0.000465,14]
[322280766,1712932250438,-151.0,0.000465,14]
[322280767,1712932250449,-151.0,0.000465,14]
[322280768,1712932250459,-151.0,0.000465,14]
[322280769,1712932250470,-153.55449,0.000465,14]
[322280770,1712932250480,-151.0,0.000465,14]
[322280771,1712932250490,-153.55449,0.000465,14]
[322280772,1712932250501,-151.0,0.000465,14]
[322280773,1712932250511,-151.0,0.000465,14]
[322280774,1712932250521,-151.0,0.000465,14]
[322280775,1712932250532,-151.0,0.000465,14]
[322280776,1712932250543,-193.484844,0.000465,14]
[322280777,1712932250553,-150.0,0.00046546,2]
[322280778,1712932250563,-150.0,0.00046556,2]
[322280779,1712932250573,-2503.8791699,0.00046568,2]
[322280780,1712932250583,-58778.837289,0.00046568,2]
[322280781,1712932250594,-7218.7800058,0.00046568,2]
[322280782,1712932250606,-213.2835608,0.0004657,120]
[322280783,1712932250617,-1000.0,0.0004657,3]
[322280784,1712932250628,-500.0,0.0004657,3]
[322280785,1712932250640,-150.0,0.00046571,2]
[322280786,1712932250653,-853.82148832,0.00046573,4]
[322280787,1712932250666,-2604.28990565,0.00046574,4]
[322280788,1712932250678,-206.59266165,0.00046574,2]
[322280789,1712932250694,-3892.0163067,0.00046574,2]
[322280790,1712932250706,-500.0,0.00046575,31]
[322280791,1712932250717,-458.98251499,0.00046575,31]
[322280792,1712932250736,-500.0,0.00046575,31]
[322280793,1712932250748,-500.0,0.00046575,31]
[322280794,1712932250759,-500.0,0.00046575,31]
[322280795,1712932250771,-500.0,0.00046575,31]
[322280796,1712932250783,-500.0,0.00046575,31]
[322280797,1712932250795,-196.2,0.00046575,31]
[322280798,1712932250807,-500.0,0.00046575,31]
[322280799,1712932250819,-500.0,0.00046575,31]
[322280800,1712932250833,-500.0,0.00046575,31]
[322280801,1712932251076,-500.0,0.00046575,31]
[322280802,1712932251086,-500.0,0.00046575,31]
[322280803,1712932251096,-500.0,0.00046575,31]
[322280804,1712932251109,-500.0,0.00046575,31]
[322280805,1712932251119,-500.0,0.00046575,31]
[322280806,1712932251129,-500.0,0.00046575,31]
[322280807,1712932251138,-500.0,0.00046575,31]
[322280808,1712932251148,-526.02227896,0.00046575,31]
[322280809,1712932251157,-530.68,0.00046575,31]
[322280810,1712932251167,-500.0,0.00046575,31]
[322280811,1712932251176,-500.0,0.00046575,31]
[322280812,1712932251186,-690.46,0.00046575,2]
[322280813,1712932251195,-179.40473799,0.00046575,31]
[322280814,1712932251205,-182.79681922,0.00046575,31]
[322280815,1712932251215,-288.25938976,0.00046575,31]
[322280816,1712932251224,-500.0,0.00046575,31]
[322280817,1712932251234,-586.07,0.00046575,31]
[322280818,1712932251243,-532.74,0.00046575,31]
[322280819,1712932251252,-500.0,0.00046575,31]
[322280820,1712932251262,-500.0,0.00046575,31]
[322280821,1712932251271,-500.0,0.00046575,31]
[322280822,1712932251281,-500.0,0.00046575,31]
[322280823,1712932251291,-500.0,0.00046575,31]
[322280824,1712932251301,-500.0,0.00046575,31]
[322280825,1712932251310,-500.0,0.00046575,31]
[322280826,1712932251319,-548.32,0.00046575,31]
[322280827,1712932251329,-500.0,0.00046575,31]
[322280828,1712932251338,-500.0,0.00046575,31]
[322280829,1712932251347,-174.53670769,0.00046575,31]
[322280830,1712932251359,-500.0,0.00046575,31]
[322280831,1712932251368,-500.0,0.00046575,2]
[322280832,1712932251378,-500.0,0.00046575,31]
[322280833,1712932251392,-500.0,0.00046575,31]
[322280834,1712932251404,-500.0,0.00046575,31]
[322280835,1712932251413,-500.0,0.00046575,31]
[322280836,1712932251424,-500.0,0.00046575,31]
[322280837,1712932251434,-622.93,0.00046575,31]
[322280838,1712932251444,-500.0,0.00046575,31]
[322280839,1712932251453,-500.0,0.00046575,31]
[322280840,1712932251463,-1000.0,0.00046575,120]
[322280841,1712932251477,-500.0,0.00046575,31]
[322280842,1712932251486,-500.0,0.00046575,31]
[322280843,1712932251496,-500.0,0.00046575,31]
[322280844,1712932251506,-500.0,0.00046575,31]
[322280845,1712932251515,-369.12493163,0.00046575,31]
[322280846,1712932251524,-500.0,0.00046575,31]
[322280847,1712932251534,-500.0,0.00046575,31]
[322280848,1712932251543,-256.21744464,0.00046575,31]
[322280849,1712932251553,-500.0,0.00046575,31]
[322280850,1712932251563,-500.0,0.00046575,31]
[322280851,1712932251572,-500.0,0.00046575,31]
[322280852,1712932251581,-500.0,0.00046575,31]
[322280853,1712932251591,-500.0,0.00046575,31]
[322280854,1712932251602,-500.0,0.00046575,31]
[322280855,1712932251611,-644.29357741,0.00046575,31]
[322280856,1712932251620,-291.9,0.00046575,31]
[322280857,1712932251630,-500.0,0.00046575,31]
[322280858,1712932251639,-500.0,0.00046575,31]